[Event "*** Titled Tuesday Blitz"]
[Site "Chess.com"]
[Date "2020.11.10"]
[Round "5"]
[White "dopolian"]
[Black "julinha97"]
[Result "1/2-1/2"]
[WhiteElo "2364"]
[BlackElo "2177"]
[TimeControl "180+1"]
[EndTime "11:00:04 PST"]
[Termination "Game drawn by repetition"]

1. Nf3 {[%clk 0:03:00.9]} 1... Nf6 {[%clk 0:02:59.2]} 2. c4 {[%clk 0:03:00.9]}
2... g6 {[%clk 0:02:57.6]} 3. b3 {[%clk 0:03:00.8]} 3... Bg7 {[%clk 0:02:52.1]}
4. Bb2 {[%clk 0:03:01.7]} 4... O-O {[%clk 0:02:52.2]} 5. g3 {[%clk 0:03:01.6]}
5... c5 {[%clk 0:02:51.6]} 6. Bg2 {[%clk 0:03:01.9]} 6... Nc6 {[%clk 0:02:50.6]}
7. O-O {[%clk 0:03:02]} 7... d6 {[%clk 0:02:43.6]} 8. d4 {[%clk 0:03:00.4]} 8...
Ne4 {[%clk 0:02:41.9]} 9. Nbd2 {[%clk 0:02:57.5]} 9... Bf5 {[%clk 0:02:30.4]}
10. Nxe4 {[%clk 0:02:38.5]} 10... Bxe4 {[%clk 0:02:29.5]} 11. e3 {[%clk
0:02:39.2]} 11... a5 {[%clk 0:02:07.2]} 12. Qd2 {[%clk 0:02:28.4]} 12... cxd4
{[%clk 0:01:58.5]} 13. Nxd4 {[%clk 0:02:17.3]} 13... Bxg2 {[%clk 0:01:57]} 14.
Kxg2 {[%clk 0:02:18.2]} 14... d5 {[%clk 0:01:50.7]} 15. Nxc6 {[%clk 0:02:14.4]}
15... bxc6 {[%clk 0:01:51.6]} 16. Bxg7 {[%clk 0:02:14.6]} 16... Kxg7 {[%clk
0:01:51.9]} 17. cxd5 {[%clk 0:02:15.2]} 17... Qxd5+ {[%clk 0:01:50.7]} 18. Qxd5
{[%clk 0:02:15.3]} 18... cxd5 {[%clk 0:01:51.6]} 19. Rac1 {[%clk 0:02:03.4]}
19... Rfc8 {[%clk 0:01:50.4]} 20. Rfd1 {[%clk 0:02:02.8]} 20... e6 {[%clk
0:01:50.3]} 21. a4 {[%clk 0:01:57.8]} 21... Rab8 {[%clk 0:01:48.5]} 22. Rxc8
{[%clk 0:01:56.7]} 22... Rxc8 {[%clk 0:01:49.4]} 23. Rd3 {[%clk 0:01:50.7]}
23... Kf6 {[%clk 0:01:46.6]} 24. Kf3 {[%clk 0:01:50.3]} 24... Ke5 {[%clk
0:01:46.7]} 25. Ke2 {[%clk 0:01:48.3]} 25... Rc2+ {[%clk 0:01:44.3]} 26. Rd2
{[%clk 0:01:43.6]} 26... Rc3 {[%clk 0:01:38.7]} 27. Rb2 {[%clk 0:01:43.4]} 27...
f5 {[%clk 0:01:25.4]} 28. Kd2 {[%clk 0:01:40]} 28... Rc7 {[%clk 0:00:40.6]} 29.
b4 {[%clk 0:01:33.5]} 29... axb4 {[%clk 0:00:41.5]} 30. Rxb4 {[%clk 0:01:34.1]}
30... h5 {[%clk 0:00:40.4]} 31. a5 {[%clk 0:01:23.3]} 31... Ra7 {[%clk
0:00:38.8]} 32. Ra4 {[%clk 0:01:23.3]} 32... Kd6 {[%clk 0:00:37.9]} 33. Kd3
{[%clk 0:01:10.7]} 33... Kc5 {[%clk 0:00:38.1]} 34. a6 {[%clk 0:00:57.4]} 34...
Kb5 {[%clk 0:00:36.2]} 35. Ra1 {[%clk 0:00:57.2]} 35... Rxa6 {[%clk 0:00:36]}
36. Rxa6 {[%clk 0:00:56.8]} 36... Kxa6 {[%clk 0:00:30.4]} 37. Kd4 {[%clk
0:00:57.4]} 37... Kb5 {[%clk 0:00:27.2]} 38. Ke5 {[%clk 0:00:57.3]} 38... Kc4
{[%clk 0:00:26.9]} 39. Kxe6 {[%clk 0:00:57.6]} 39... Kd3 {[%clk 0:00:24.6]} 40.
Kxd5 {[%clk 0:00:43.8]} 40... Ke2 {[%clk 0:00:24.3]} 41. Ke5 {[%clk 0:00:33.7]}
41... Kxf2 {[%clk 0:00:23.7]} 42. Kf6 {[%clk 0:00:19.3]} 42... Kxe3 {[%clk
0:00:13.5]} 43. Kxg6 {[%clk 0:00:19.1]} 43... h4 {[%clk 0:00:06]} 44. gxh4
{[%clk 0:00:13.9]} 44... f4 {[%clk 0:00:05.9]} 45. h5 {[%clk 0:00:14.8]} 45...
f3 {[%clk 0:00:06.3]} 46. h6 {[%clk 0:00:15.6]} 46... f2 {[%clk 0:00:07.1]} 47.
h7 {[%clk 0:00:16.3]} 47... f1=Q {[%clk 0:00:07.7]} 48. h8=Q {[%clk 0:00:16.9]}
48... Qg2+ {[%clk 0:00:05.8]} 49. Kf7 {[%clk 0:00:13.5]} 49... Qb7+ {[%clk
0:00:05.1]} 50. Kg6 {[%clk 0:00:08]} 50... Qg2+ {[%clk 0:00:04.3]} 51. Kf7
{[%clk 0:00:06.7]} 51... Qb7+ {[%clk 0:00:03.9]} 52. Kg8 {[%clk 0:00:07.2]}
52... Qc8+ {[%clk 0:00:01.5]} 53. Kg7 {[%clk 0:00:04.9]} 53... Qg4+ {[%clk
0:00:02.4]} 54. Kf7 {[%clk 0:00:03.7]} 54... Qf5+ {[%clk 0:00:02.6]} 55. Qf6
{[%clk 0:00:02.9]} 55... Qh7+ {[%clk 0:00:02.9]} 56. Ke6 {[%clk 0:00:02.8]}
56... Qxh2 {[%clk 0:00:02.6]} 57. Qg5+ {[%clk 0:00:02.6]} 57... Kf2 {[%clk
0:00:02.7]} 58. Qa5 {[%clk 0:00:02.6]} 58... Qh6+ {[%clk 0:00:02]} 59. Kf7
{[%clk 0:00:03.1]} 59... Qh7+ {[%clk 0:00:02]} 60. Ke8 {[%clk 0:00:03.7]} 60...
Qh8+ {[%clk 0:00:02.5]} 61. Kd7 {[%clk 0:00:04.1]} 61... Qh7+ {[%clk 0:00:03.4]}
62. Ke6 {[%clk 0:00:04.6]} 62... Qh6+ {[%clk 0:00:03.8]} 63. Kf7 {[%clk
0:00:05.2]} 63... Qh7+ {[%clk 0:00:04.1]} 64. Kf6 {[%clk 0:00:05.8]} 64... Qh6+
{[%clk 0:00:04.5]} 65. Kf7 {[%clk 0:00:06.4]} 1/2-1/2

[Event "*** Titled Tuesday Blitz"]
[Site "Chess.com"]
[Date "2020.11.10"]
[Round "5"]
[White "Vsevolod_Ovchinnikov"]
[Black "Keures"]
[Result "1-0"]
[WhiteElo "2525"]
[BlackElo "2342"]
[TimeControl "180+1"]
[EndTime "11:00:07 PST"]
[Termination "Vsevolod_Ovchinnikov won by resignation"]

1. d4 {[%clk 0:03:00.9]} 1... Nf6 {[%clk 0:02:59.5]} 2. c4 {[%clk 0:03:01.3]}
2... c5 {[%clk 0:02:59]} 3. d5 {[%clk 0:03:01.5]} 3... b5 {[%clk 0:02:59.1]} 4.
cxb5 {[%clk 0:03:02.4]} 4... a6 {[%clk 0:02:59.2]} 5. bxa6 {[%clk 0:03:03.1]}
5... g6 {[%clk 0:02:59.1]} 6. Nc3 {[%clk 0:03:03.6]} 6... Bxa6 {[%clk
0:02:59.1]} 7. Nf3 {[%clk 0:03:02.3]} 7... d6 {[%clk 0:02:58]} 8. e4 {[%clk
0:02:59.4]} 8... Bxf1 {[%clk 0:02:57]} 9. Kxf1 {[%clk 0:03:00.3]} 9... Nbd7
{[%clk 0:02:57.1]} 10. g3 {[%clk 0:03:01]} 10... Bg7 {[%clk 0:02:57.4]} 11. Kg2
{[%clk 0:03:01.7]} 11... O-O {[%clk 0:02:57.7]} 12. h3 {[%clk 0:03:02]} 12...
Qa5 {[%clk 0:02:56.9]} 13. Qc2 {[%clk 0:02:58.8]} 13... Rfb8 {[%clk 0:02:55.6]}
14. Re1 {[%clk 0:02:46.9]} 14... Qb4 {[%clk 0:02:49.7]} 15. Rb1 {[%clk
0:02:38.7]} 15... Ne8 {[%clk 0:02:32.6]} 16. Bd2 {[%clk 0:02:32.5]} 16... Nc7
{[%clk 0:02:26.2]} 17. b3 {[%clk 0:02:25.3]} 17... Nb5 {[%clk 0:02:08.4]} 18.
Nxb5 {[%clk 0:02:24.9]} 18... Qxb5 {[%clk 0:02:09.3]} 19. a4 {[%clk 0:02:25.4]}
19... Qb7 {[%clk 0:02:02.6]} 20. b4 {[%clk 0:02:07.7]} 20... Qa6 {[%clk
0:01:38.1]} 21. a5 {[%clk 0:01:58]} 21... Rb5 {[%clk 0:01:29.1]} 22. bxc5 {[%clk
0:01:53.8]} 22... Nxc5 {[%clk 0:01:22.7]} 23. Rxb5 {[%clk 0:01:47.1]} 23... Qxb5
{[%clk 0:01:23.6]} 24. Rb1 {[%clk 0:01:47]} 24... Qe2 {[%clk 0:01:20]} 25. Re1
{[%clk 0:01:45.5]} 25... Qb5 {[%clk 0:01:11.6]} 26. Ng1 {[%clk 0:00:53.8]} 26...
Be5 {[%clk 0:00:46.9]} 27. Rb1 {[%clk 0:00:48.8]} 27... Qd3 {[%clk 0:00:31.4]}
28. Qxd3 {[%clk 0:00:48.4]} 28... Nxd3 {[%clk 0:00:32.3]} 29. Ne2 {[%clk
0:00:37.4]} 29... f5 {[%clk 0:00:26.5]} 30. exf5 {[%clk 0:00:33.5]} 30... gxf5
{[%clk 0:00:26.1]} 31. Rb7 {[%clk 0:00:29]} 31... Kf7 {[%clk 0:00:25.5]} 32. f4
{[%clk 0:00:25.8]} 32... Bf6 {[%clk 0:00:24.1]} 33. g4 {[%clk 0:00:24.2]} 33...
fxg4 {[%clk 0:00:22.1]} 34. hxg4 {[%clk 0:00:25.1]} 34... Nc5 {[%clk 0:00:21.8]}
35. Rb5 {[%clk 0:00:18.8]} 35... Ne4 {[%clk 0:00:20.8]} 36. Be1 {[%clk
0:00:15.7]} 36... h6 {[%clk 0:00:19.3]} 37. Kf3 {[%clk 0:00:15.8]} 37... Nc5
{[%clk 0:00:18.1]} 38. Bd2 {[%clk 0:00:15.1]} 38... e6 {[%clk 0:00:11.4]} 39.
dxe6+ {[%clk 0:00:14.9]} 39... Nxe6 {[%clk 0:00:12.3]} 40. Rb7+ {[%clk
0:00:14.1]} 40... Kg8 {[%clk 0:00:09.1]} 41. Rb6 {[%clk 0:00:09.6]} 41... Be7
{[%clk 0:00:04.8]} 42. f5 {[%clk 0:00:06.1]} 42... Nc5 {[%clk 0:00:04.9]} 43.
Nd4 {[%clk 0:00:05.6]} 43... Bd8 {[%clk 0:00:02.7]} 44. Rxd6 {[%clk 0:00:04.6]}
44... Bxa5 {[%clk 0:00:02.8]} 45. Bxa5 {[%clk 0:00:04.5]} 45... Rxa5 {[%clk
0:00:03.7]} 46. Rxh6 {[%clk 0:00:04.9]} 46... Ra4 {[%clk 0:00:02.8]} 47. Ne6
{[%clk 0:00:05.2]} 47... Nxe6 {[%clk 0:00:02.6]} 48. Rxe6 {[%clk 0:00:06.1]}
48... Kf8 {[%clk 0:00:03]} 49. Kg3 {[%clk 0:00:06.3]} 49... Kf7 {[%clk
0:00:03.9]} 50. Kh4 {[%clk 0:00:06.8]} 50... Rf4 {[%clk 0:00:03.6]} 51. Kg5
{[%clk 0:00:07.1]} 51... Rf1 {[%clk 0:00:04.5]} 52. Ra6 {[%clk 0:00:07.3]} 52...
Rg1 {[%clk 0:00:04.5]} 53. Ra7+ {[%clk 0:00:07.9]} 53... Kf8 {[%clk 0:00:05.4]}
54. Kh5 {[%clk 0:00:08.2]} 54... Rh1+ {[%clk 0:00:05.2]} 55. Kg6 {[%clk
0:00:08.7]} 55... Rg1 {[%clk 0:00:05.6]} 56. g5 {[%clk 0:00:09.2]} 56... Ke8
{[%clk 0:00:06.1]} 57. f6 {[%clk 0:00:09.6]} 57... Rf1 {[%clk 0:00:03.1]} 58.
Ra8+ {[%clk 0:00:09.7]} 58... Kd7 {[%clk 0:00:03]} 59. Kg7 {[%clk 0:00:10]}
59... Rf5 {[%clk 0:00:02.4]} 60. g6 {[%clk 0:00:10.2]} 60... Ke6 {[%clk
0:00:02.8]} 61. f7 {[%clk 0:00:10.5]} 61... Ke7 {[%clk 0:00:03.2]} 62. f8=Q+
{[%clk 0:00:10.4]} 62... Rxf8 {[%clk 0:00:03]} 63. Rxf8 {[%clk 0:00:11.3]} 1-0

[Event "*** Titled Tuesday Blitz"]
[Site "Chess.com"]
[Date "2020.11.10"]
[Round "5"]
[White "Sadykov_Ramil"]
[Black "DenLaz"]
[Result "0-1"]
[WhiteElo "2557"]
[BlackElo "2754"]
[TimeControl "180+1"]
[EndTime "11:00:10 PST"]
[Termination "DenLaz won by resignation"]

1. e4 {[%clk 0:02:59.7]} 1... e5 {[%clk 0:02:59.6]} 2. Nf3 {[%clk 0:02:59.3]}
2... Nc6 {[%clk 0:03:00.1]} 3. Bb5 {[%clk 0:02:58.5]} 3... a6 {[%clk 0:03:00.1]}
4. Bxc6 {[%clk 0:02:56.4]} 4... dxc6 {[%clk 0:03:00]} 5. Nc3 {[%clk 0:02:57]}
5... f6 {[%clk 0:02:56]} 6. d4 {[%clk 0:02:56.3]} 6... exd4 {[%clk 0:02:55.2]}
7. Qxd4 {[%clk 0:02:53]} 7... Qxd4 {[%clk 0:02:51.7]} 8. Nxd4 {[%clk 0:02:53.9]}
8... Bd7 {[%clk 0:02:46.8]} 9. Be3 {[%clk 0:02:28.5]} 9... O-O-O {[%clk
0:02:44.5]} 10. O-O-O {[%clk 0:02:26.4]} 10... Ne7 {[%clk 0:02:43.9]} 11. h3
{[%clk 0:01:54.2]} 11... Ng6 {[%clk 0:02:38.2]} 12. f4 {[%clk 0:01:52]} 12...
Bd6 {[%clk 0:02:17.2]} 13. Rhf1 {[%clk 0:01:35.8]} 13... Rhe8 {[%clk 0:02:09.7]}
14. a3 {[%clk 0:01:27]} 14... c5 {[%clk 0:02:08.3]} 15. Nb3 {[%clk 0:01:25.5]}
15... b6 {[%clk 0:02:07.8]} 16. g4 {[%clk 0:01:16.4]} 16... Bc6 {[%clk 0:02:06]}
17. Nd2 {[%clk 0:01:16.8]} 17... Bf8 {[%clk 0:01:57.3]} 18. Bg1 {[%clk
0:01:08.8]} 18... a5 {[%clk 0:01:49.6]} 19. Bh2 {[%clk 0:01:03.3]} 19... a4
{[%clk 0:01:45.8]} 20. Rde1 {[%clk 0:00:56.7]} 20... Rd7 {[%clk 0:01:41.7]} 21.
e5 {[%clk 0:00:53]} 21... fxe5 {[%clk 0:01:13.5]} 22. fxe5 {[%clk 0:00:37.5]}
22... Rde7 {[%clk 0:01:04.3]} 23. Rf2 {[%clk 0:00:29.5]} 23... Re6 {[%clk
0:01:02.1]} 24. Rf7 {[%clk 0:00:19.1]} 24... R8e7 {[%clk 0:00:50]} 25. Ref1
{[%clk 0:00:15.6]} 25... Rxf7 {[%clk 0:00:49]} 26. Rxf7 {[%clk 0:00:16.5]} 26...
Be8 {[%clk 0:00:49.1]} 27. Rf5 {[%clk 0:00:16.3]} 27... Be7 {[%clk 0:00:48.4]}
28. Bg3 {[%clk 0:00:16.1]} 28... Nh8 {[%clk 0:00:37.8]} 29. Nd5 {[%clk
0:00:14.9]} 29... Ng6 {[%clk 0:00:14.9]} 30. Nf3 {[%clk 0:00:13.4]} 30... Bc6
{[%clk 0:00:12.5]} 31. c4 {[%clk 0:00:10.4]} 31... Be8 {[%clk 0:00:09.5]} 32. h4
{[%clk 0:00:10.3]} 32... Bd8 {[%clk 0:00:08.8]} 33. h5 {[%clk 0:00:10.3]} 33...
Ne7 {[%clk 0:00:09]} 34. Rf8 {[%clk 0:00:09.6]} 34... Nc6 {[%clk 0:00:09.3]} 35.
Ng5 {[%clk 0:00:05.6]} 35... Bxg5+ {[%clk 0:00:09]} 36. Kc2 {[%clk 0:00:04]}
36... Kd7 {[%clk 0:00:08.5]} 37. Rf5 {[%clk 0:00:02.2]} 37... Bd8 {[%clk
0:00:07.4]} 38. Kd3 {[%clk 0:00:02.5]} 38... Nd4 {[%clk 0:00:07.6]} 39. Rf8
{[%clk 0:00:02.3]} 39... c6 {[%clk 0:00:07.1]} 40. Ne3 {[%clk 0:00:01.4]} 40...
Bc7 {[%clk 0:00:06.1]} 41. Nf5 {[%clk 0:00:01.8]} 41... Bxe5 {[%clk 0:00:04.3]}
42. Bxe5 {[%clk 0:00:01.9]} 42... Rxe5 {[%clk 0:00:05.2]} 43. Nxg7 {[%clk
0:00:02.7]} 43... Re1 {[%clk 0:00:03.3]} 44. Rh8 {[%clk 0:00:02.3]} 44... Bf7
{[%clk 0:00:02.2]} 45. Rxh7 {[%clk 0:00:02.3]} 45... Ke7 {[%clk 0:00:02.7]} 46.
Nf5+ {[%clk 0:00:02.1]} 46... Nxf5 {[%clk 0:00:02.4]} 47. gxf5 {[%clk 0:00:03]}
47... Kf6 {[%clk 0:00:03.1]} 48. Rh6+ {[%clk 0:00:03]} 48... Kxf5 {[%clk
0:00:03.6]} 49. Rxc6 {[%clk 0:00:03.9]} 49... Rb1 {[%clk 0:00:01.9]} 50. Rxb6
{[%clk 0:00:03.6]} 50... Bxh5 {[%clk 0:00:02.5]} 51. Rb5 {[%clk 0:00:03.2]}
51... Kf4 {[%clk 0:00:02.9]} 52. Kc2 {[%clk 0:00:03.5]} 52... Rh1 {[%clk
0:00:02.6]} 53. Rxc5 {[%clk 0:00:03.5]} 53... Bg6+ {[%clk 0:00:03.2]} 54. Kc3
{[%clk 0:00:03.7]} 54... Rh3+ {[%clk 0:00:03.5]} 55. Kb4 {[%clk 0:00:03.8]}
55... Rb3+ {[%clk 0:00:04.1]} 56. Kxa4 {[%clk 0:00:04]} 56... Rxb2 {[%clk
0:00:04.7]} 57. Ka5 {[%clk 0:00:04.3]} 57... Be4 {[%clk 0:00:04.5]} 58. Rb5
{[%clk 0:00:04.2]} 58... Ra2 {[%clk 0:00:04.3]} 59. Kb4 {[%clk 0:00:04.6]} 59...
Ke3 {[%clk 0:00:04.7]} 60. Rb8 {[%clk 0:00:04]} 60... Rb2+ {[%clk 0:00:04.2]}
61. Kc3 {[%clk 0:00:02.4]} 61... Rxb8 {[%clk 0:00:05.1]} 0-1

[Event "*** Titled Tuesday Blitz"]
[Site "Chess.com"]
[Date "2020.11.10"]
[Round "5"]
[White "Oneofmyturns"]
[Black "Natalya_Buksa"]
[Result "1-0"]
[WhiteElo "2735"]
[BlackElo "2570"]
[TimeControl "180+1"]
[EndTime "11:00:11 PST"]
[Termination "Oneofmyturns won by checkmate"]

1. d4 {[%clk 0:03:00.9]} 1... d5 {[%clk 0:02:59.4]} 2. c4 {[%clk 0:03:01.4]}
2... e6 {[%clk 0:02:59.7]} 3. Nc3 {[%clk 0:03:01.7]} 3... Be7 {[%clk 0:02:58.3]}
4. cxd5 {[%clk 0:03:02.2]} 4... exd5 {[%clk 0:02:58.4]} 5. Bf4 {[%clk
0:03:02.9]} 5... Nf6 {[%clk 0:02:58.7]} 6. e3 {[%clk 0:03:03.5]} 6... Bf5 {[%clk
0:02:59]} 7. Nge2 {[%clk 0:03:00.5]} 7... O-O {[%clk 0:02:54.7]} 8. Ng3 {[%clk
0:03:00.4]} 8... Be6 {[%clk 0:02:55.2]} 9. Bd3 {[%clk 0:02:57.2]} 9... c5 {[%clk
0:02:55.6]} 10. O-O {[%clk 0:02:44]} 10... cxd4 {[%clk 0:02:55.1]} 11. exd4
{[%clk 0:02:44.9]} 11... Nc6 {[%clk 0:02:55.2]} 12. Nf5 {[%clk 0:02:44]} 12...
Bb4 {[%clk 0:02:40.6]} 13. Bg5 {[%clk 0:02:36.7]} 13... Bxf5 {[%clk 0:02:27.6]}
14. Bxf5 {[%clk 0:02:37.6]} 14... h6 {[%clk 0:02:28.2]} 15. Be3 {[%clk
0:02:30.5]} 15... Ne7 {[%clk 0:02:22.2]} 16. Bh3 {[%clk 0:02:24.2]} 16... Ng6
{[%clk 0:02:08.5]} 17. Qb3 {[%clk 0:02:22.5]} 17... Qd6 {[%clk 0:02:07.1]} 18.
a3 {[%clk 0:02:19.9]} 18... Bxc3 {[%clk 0:02:04.1]} 19. bxc3 {[%clk 0:02:20.8]}
19... b6 {[%clk 0:01:59]} 20. g3 {[%clk 0:02:20.8]} 20... Rad8 {[%clk
0:01:54.6]} 21. a4 {[%clk 0:02:20.1]} 21... Ne4 {[%clk 0:01:51.6]} 22. a5 {[%clk
0:01:56.5]} 22... f5 {[%clk 0:01:50.5]} 23. f3 {[%clk 0:01:46.2]} 23... Nxg3
{[%clk 0:01:29.4]} 24. hxg3 {[%clk 0:01:43.3]} 24... Qxg3+ {[%clk 0:01:30]} 25.
Bg2 {[%clk 0:01:43.3]} 25... Nh4 {[%clk 0:01:30.3]} 26. Ra2 {[%clk 0:01:33]}
26... f4 {[%clk 0:01:30.5]} 27. Bc1 {[%clk 0:01:30.8]} 27... Rf6 {[%clk
0:01:18.4]} 28. axb6 {[%clk 0:01:04]} 28... axb6 {[%clk 0:01:17.8]} 29. Rff2
{[%clk 0:00:42.4]} 29... Rg6 {[%clk 0:01:11.6]} 30. Qd1 {[%clk 0:00:42.7]} 30...
Re8 {[%clk 0:01:08.8]} 31. Rae2 {[%clk 0:00:30.4]} 31... Rc8 {[%clk 0:00:42.4]}
32. Bd2 {[%clk 0:00:30.7]} 32... Rg5 {[%clk 0:00:19.2]} 33. Be1 {[%clk
0:00:30.6]} 33... Rf8 {[%clk 0:00:13.7]} 34. Qd3 {[%clk 0:00:17.3]} 34... Qh3
{[%clk 0:00:13.8]} 35. Qc2 {[%clk 0:00:09.5]} 35... Nf5 {[%clk 0:00:13.8]} 36.
Rf1 {[%clk 0:00:08]} 36... Ne3 {[%clk 0:00:12.8]} 37. Rxe3 {[%clk 0:00:08.5]}
37... fxe3 {[%clk 0:00:13.2]} 38. Qe2 {[%clk 0:00:09.2]} 38... Re8 {[%clk
0:00:08.3]} 39. f4 {[%clk 0:00:09.6]} 39... Rg4 {[%clk 0:00:07]} 40. Rf3 {[%clk
0:00:10.1]} 40... Qh5 {[%clk 0:00:04]} 41. Kf1 {[%clk 0:00:08.7]} 41... Rxf4
{[%clk 0:00:04.4]} 42. Rxf4 {[%clk 0:00:08.2]} 42... Qg6 {[%clk 0:00:04.7]} 43.
Qf3 {[%clk 0:00:06.9]} 43... Qd3+ {[%clk 0:00:04.5]} 44. Kg1 {[%clk 0:00:06.8]}
44... Qb1 {[%clk 0:00:04.1]} 45. Qe2 {[%clk 0:00:03]} 45... Kh8 {[%clk
0:00:04.1]} 46. Rf1 {[%clk 0:00:03.4]} 46... Qg6 {[%clk 0:00:03.8]} 47. Kh2
{[%clk 0:00:02.6]} 47... Qg5 {[%clk 0:00:03.6]} 48. Bg3 {[%clk 0:00:03.1]} 48...
Qg6 {[%clk 0:00:03.1]} 49. Rf3 {[%clk 0:00:03.6]} 49... Qg5 {[%clk 0:00:03.3]}
50. Bf4 {[%clk 0:00:04.1]} 50... Qh5+ {[%clk 0:00:03.7]} 51. Kg1 {[%clk
0:00:04.5]} 51... Qf5 {[%clk 0:00:04]} 52. Rxe3 {[%clk 0:00:04.5]} 52... Rxe3
{[%clk 0:00:03.9]} 53. Qxe3 {[%clk 0:00:05.4]} 53... Qb1+ {[%clk 0:00:04.4]} 54.
Kh2 {[%clk 0:00:06]} 54... Qg6 {[%clk 0:00:05]} 55. Qg3 {[%clk 0:00:05.4]} 55...
Qh5+ {[%clk 0:00:05.3]} 56. Qh3 {[%clk 0:00:06]} 56... Qg6 {[%clk 0:00:05.1]}
57. Bxd5 {[%clk 0:00:06]} 57... Qc2+ {[%clk 0:00:05]} 58. Bg2 {[%clk 0:00:06.6]}
58... Qe2 {[%clk 0:00:04.9]} 59. Qc8+ {[%clk 0:00:06.5]} 59... Kh7 {[%clk
0:00:05]} 60. Qf5+ {[%clk 0:00:07.4]} 60... Kh8 {[%clk 0:00:05.3]} 61. Kg3
{[%clk 0:00:07.8]} 61... Qe1+ {[%clk 0:00:05.3]} 62. Kh3 {[%clk 0:00:07.9]}
62... Qf2 {[%clk 0:00:03]} 63. Qf8+ {[%clk 0:00:06.8]} 63... Kh7 {[%clk
0:00:03]} 64. Be4+ {[%clk 0:00:07.4]} 64... g6 {[%clk 0:00:02.8]} 65. Qf7+
{[%clk 0:00:07.9]} 65... Kh8 {[%clk 0:00:02.7]} 66. Be5+ {[%clk 0:00:08.8]}
66... Qf6 {[%clk 0:00:01.6]} 67. Bxf6# {[%clk 0:00:09.7]} 1-0

[Event "*** Titled Tuesday Blitz"]
[Site "Chess.com"]
[Date "2020.11.10"]
[Round "5"]
[White "chenxiaoyuer"]
[Black "PaulfromSPb"]
[Result "1-0"]
[WhiteElo "2530"]
[BlackElo "2699"]
[TimeControl "180+1"]
[EndTime "11:00:11 PST"]
[Termination "chenxiaoyuer won by resignation"]

1. e4 {[%clk 0:03:00.9]} 1... c5 {[%clk 0:02:58.5]} 2. Nf3 {[%clk 0:03:00.4]}
2... d6 {[%clk 0:02:58.6]} 3. d4 {[%clk 0:03:00]} 3... cxd4 {[%clk 0:02:59.5]}
4. Nxd4 {[%clk 0:03:00.1]} 4... Nf6 {[%clk 0:02:59.4]} 5. Nc3 {[%clk 0:02:56.9]}
5... a6 {[%clk 0:02:59.6]} 6. Be2 {[%clk 0:02:55.4]} 6... g6 {[%clk 0:02:58.5]}
7. O-O {[%clk 0:02:53.4]} 7... Bg7 {[%clk 0:02:59.4]} 8. a4 {[%clk 0:02:50.7]}
8... Nc6 {[%clk 0:02:59]} 9. Nb3 {[%clk 0:02:48.1]} 9... O-O {[%clk 0:02:57.7]}
10. Bg5 {[%clk 0:02:47.2]} 10... Na5 {[%clk 0:02:55.9]} 11. Qd2 {[%clk
0:02:13.3]} 11... Be6 {[%clk 0:02:45.9]} 12. Nd4 {[%clk 0:01:53.7]} 12... Bc4
{[%clk 0:02:40.9]} 13. Rad1 {[%clk 0:01:24.8]} 13... Re8 {[%clk 0:02:21]} 14.
Qe3 {[%clk 0:01:19.3]} 14... Qc7 {[%clk 0:02:09.1]} 15. b3 {[%clk 0:01:00.7]}
15... Bxe2 {[%clk 0:02:04.1]} 16. Ndxe2 {[%clk 0:01:01.6]} 16... Ng4 {[%clk
0:01:24]} 17. Qg3 {[%clk 0:01:00.1]} 17... Ne5 {[%clk 0:01:23.6]} 18. Nd4 {[%clk
0:00:44.1]} 18... e6 {[%clk 0:01:18.5]} 19. Nce2 {[%clk 0:00:39.4]} 19... Rac8
{[%clk 0:01:13.7]} 20. c4 {[%clk 0:00:38.2]} 20... Qb6 {[%clk 0:01:08.1]} 21.
Be3 {[%clk 0:00:34.3]} 21... Qc7 {[%clk 0:01:05.9]} 22. f4 {[%clk 0:00:30.9]}
22... Nec6 {[%clk 0:01:05.5]} 23. f5 {[%clk 0:00:28]} 23... Ne5 {[%clk
0:00:58.9]} 24. fxe6 {[%clk 0:00:23.1]} 24... fxe6 {[%clk 0:00:59.2]} 25. Qh3
{[%clk 0:00:21.6]} 25... Qd7 {[%clk 0:00:55.4]} 26. Nf4 {[%clk 0:00:20.9]} 26...
Nac6 {[%clk 0:00:35.3]} 27. Ndxe6 {[%clk 0:00:17.7]} 27... Bh8 {[%clk
0:00:34.9]} 28. Ng5 {[%clk 0:00:14.9]} 28... Qxh3 {[%clk 0:00:33.3]} 29. Nfxh3
{[%clk 0:00:13.7]} 29... Na5 {[%clk 0:00:33.3]} 30. Rb1 {[%clk 0:00:11.4]} 30...
Ng4 {[%clk 0:00:33.1]} 31. Bf2 {[%clk 0:00:09.3]} 31... h6 {[%clk 0:00:31.9]}
32. Nf3 {[%clk 0:00:09.1]} 32... Rxe4 {[%clk 0:00:31.9]} 33. Rfe1 {[%clk
0:00:08.5]} 33... Rce8 {[%clk 0:00:31.2]} 34. Rxe4 {[%clk 0:00:07.9]} 34... Rxe4
{[%clk 0:00:32.1]} 35. Be1 {[%clk 0:00:06.9]} 35... Nc6 {[%clk 0:00:31]} 36. Nf2
{[%clk 0:00:06.7]} 36... Nxf2 {[%clk 0:00:29.8]} 37. Kxf2 {[%clk 0:00:07.6]}
37... g5 {[%clk 0:00:29.9]} 38. Bd2 {[%clk 0:00:07.3]} 38... g4 {[%clk
0:00:29.1]} 39. Re1 {[%clk 0:00:06.4]} 39... Rxe1 {[%clk 0:00:24.3]} 40. Nxe1
{[%clk 0:00:07.3]} 40... Nd4 {[%clk 0:00:24.3]} 41. b4 {[%clk 0:00:06.3]} 41...
Nb3 {[%clk 0:00:22.5]} 42. Bxh6 {[%clk 0:00:05.9]} 42... Bd4+ {[%clk 0:00:20.1]}
43. Ke2 {[%clk 0:00:06]} 43... Kf7 {[%clk 0:00:19.4]} 44. Nc2 {[%clk 0:00:06]}
44... Bf6 {[%clk 0:00:18.5]} 45. h3 {[%clk 0:00:06]} 45... gxh3 {[%clk
0:00:18.1]} 46. gxh3 {[%clk 0:00:06.9]} 46... Kg6 {[%clk 0:00:18.4]} 47. Bf4
{[%clk 0:00:07.2]} 47... Be7 {[%clk 0:00:18.6]} 48. Kd3 {[%clk 0:00:07.1]} 48...
a5 {[%clk 0:00:18.8]} 49. Kc3 {[%clk 0:00:07.2]} 49... Na1 {[%clk 0:00:17.2]}
50. Nxa1 {[%clk 0:00:06.9]} 50... Bf6+ {[%clk 0:00:18.1]} 51. Kb3 {[%clk
0:00:06.7]} 51... Bxa1 {[%clk 0:00:18.1]} 52. Bxd6 {[%clk 0:00:06.5]} 52... axb4
{[%clk 0:00:18.4]} 53. Kxb4 {[%clk 0:00:06.8]} 53... Kf5 {[%clk 0:00:15.1]} 54.
Kb5 {[%clk 0:00:07]} 54... Ke6 {[%clk 0:00:16]} 55. Bg3 {[%clk 0:00:07]} 55...
Kd7 {[%clk 0:00:15.2]} 56. c5 {[%clk 0:00:07.1]} 56... Bf6 {[%clk 0:00:14.2]}
57. a5 {[%clk 0:00:07.3]} 57... Kc8 {[%clk 0:00:13.5]} 58. h4 {[%clk 0:00:06.4]}
58... Bg7 {[%clk 0:00:13.2]} 59. h5 {[%clk 0:00:06.8]} 59... Bh6 {[%clk
0:00:13.6]} 60. Be5 {[%clk 0:00:07.2]} 60... Kd7 {[%clk 0:00:13.2]} 61. Kb6
{[%clk 0:00:07.3]} 61... Kc8 {[%clk 0:00:13.5]} 62. a6 {[%clk 0:00:07.3]} 62...
bxa6 {[%clk 0:00:13.4]} 63. Kxa6 {[%clk 0:00:08.2]} 63... Be3 {[%clk 0:00:12.8]}
64. Kb6 {[%clk 0:00:08.4]} 64... Kd7 {[%clk 0:00:12.5]} 65. Bg7 {[%clk
0:00:07.8]} 65... Ke6 {[%clk 0:00:10.4]} 66. h6 {[%clk 0:00:08.1]} 66... Kf7
{[%clk 0:00:10.6]} 67. Kc6 {[%clk 0:00:08.3]} 67... Bxc5 {[%clk 0:00:09.5]} 68.
Kxc5 {[%clk 0:00:08.4]} 68... Kg6 {[%clk 0:00:10]} 69. Kd6 {[%clk 0:00:08.9]}
69... Kh7 {[%clk 0:00:10.9]} 70. Ke7 {[%clk 0:00:08.8]} 70... Kg8 {[%clk
0:00:11.8]} 71. Kf6 {[%clk 0:00:08.5]} 71... Kh7 {[%clk 0:00:12.7]} 72. Kg5
{[%clk 0:00:08.5]} 72... Kg8 {[%clk 0:00:13.6]} 73. Bb2 {[%clk 0:00:08.5]} 73...
Kh7 {[%clk 0:00:14.5]} 74. Kh5 {[%clk 0:00:09]} 74... Kg8 {[%clk 0:00:15.4]} 75.
Kg6 {[%clk 0:00:09.6]} 1-0